bitfinex/quotes_SOLUSD_20250118
["timestamp","ask_amount","ask_price","bid_price","bid_amount"]
[1737203808358,23.776884,242.8,242.72,1.6196]
[1737203808559,23.776884,242.73,242.61,26.10895888]
[1737203808846,23.776884,242.68,242.59,1.6196]
[1737203809047,23.776884,242.77,242.6,19.57065888]
[1737203809252,23.776884,242.7,242.62,22.6581898]
[1737203809556,23.776884,242.66,242.62,3.08753092]
[1737203809946,23.776884,242.64,242.56,19.63365888]
[1737203810252,23.776884,242.64,242.56,0.063]
[1737203810558,43.34754288,242.64,242.56,0.063]
[1737203811340,91.52669516,242.64,242.56,0.063]
[1737203812457,59.71243958,242.64,242.56,0.063]
[1737203812968,55.59113958,242.64,242.56,0.063]
[1737203813847,87.40539516,242.64,242.56,0.063]
[1737203814449,55.59113958,242.64,242.56,0.063]
[1737203815855,87.40539516,242.64,242.56,0.063]
[1737203816053,20.0,242.61,242.56,0.063]
[1737203816256,27.898384,242.63,242.5,0.5]
[1737203816257,32.34,242.54,242.5,0.5]
[1737203816454,26.43197821,242.6,242.39,0.03]
[1737203816455,20.0,242.48,242.39,0.03]
[1737203816637,55.59113958,242.4,242.39,0.03]
[1737203817156,23.776884,242.4,242.39,0.03]
[1737203817654,31.81425558,242.48,242.39,31.84425558]
[1737203817955,31.81425558,242.5,242.43,31.81425558]
[1737203818269,31.81425558,242.5,242.42,1.6196]
[1737203818567,31.81425558,242.52,242.43,31.81425558]
[1737203818941,23.776884,242.51,242.46,20.0]
[1737203820037,31.81425558,242.52,242.46,20.0]
[1737203820239,10.3032,242.65,242.42,1.6196]
[1737203820240,23.776884,242.53,242.48,20.0]
[1737203820455,31.81425558,242.56,242.48,20.0]
[1737203820757,31.81425558,242.56,242.5,20.0]
[1737203821063,31.81425558,242.6,242.52,20.0]
[1737203821246,4.1199,242.72,242.54,20.0]
[1737203821553,31.81425558,242.61,242.54,20.0]
[1737203821959,31.81425558,242.66,242.57,31.81425558]
[1737203822262,31.81425558,242.62,242.53,31.81425558]
[1737203822563,31.81425558,242.62,242.56,20.0]
[1737203823158,23.776884,242.61,242.56,20.0]
[1737203824558,31.81425558,242.62,242.48,14.0]
[1737203824559,23.776884,242.59,242.51,31.81425558]
[1737203824864,18.4675,242.74,242.44,31.81425558]
[1737203824865,23.776884,242.52,242.44,31.81425558]
[1737203825443,31.81425558,242.55,242.44,31.81425558]
[1737203825653,31.81425558,242.57,242.49,20.0]
[1737203825963,31.81425558,242.59,242.53,20.0]
[1737203826459,31.81425558,242.63,242.57,20.0]
[1737203827262,31.81425558,242.6,242.42,2.23803763]
[1737203827444,31.81425558,242.53,242.44,31.81425558]
[1737203827763,23.776884,242.52,242.42,33.43385558]
[1737203828343,23.776884,242.52,242.47,20.0]
[1737203828543,31.81425558,242.55,242.49,20.0]
[1737203828747,23.776884,242.54,242.49,20.0]
[1737203829039,31.81425558,242.57,242.49,20.0]
[1737203829263,31.81425558,242.59,242.5,31.81425558]
[1737203829563,23.776884,242.58,242.5,31.81425558]
[1737203829756,23.776884,242.56,242.51,20.0]
[1737203829942,23.776884,242.56,242.46,31.81425558]
[1737203830147,23.776884,242.56,242.51,20.0]
[1737203830455,31.81425558,242.57,242.51,20.0]
[1737203830655,4.1211,242.65,242.42,1.6196]
[1737203830656,31.81425558,242.59,242.5,31.81425558]
[1737203830857,31.81425558,242.64,242.58,20.0]
[1737203831176,31.81425558,242.64,242.44,20.0]
[1737203831177,31.81425558,242.59,242.44,20.0]
[1737203831365,31.81425558,242.54,242.44,51.81425558]
[1737203831545,31.81425558,242.56,242.49,20.0]
[1737203832357,23.776884,242.55,242.49,20.0]
[1737203833155,23.776884,242.53,242.45,8.1879]
[1737203833362,19.59013338,242.51,242.45,1.6496]
[1737203833669,43.36701738,242.54,242.45,1.6496]
[1737203834260,23.776884,242.51,242.46,20.0]
[1737203834971,23.776884,242.47,242.45,0.03]
[1737203835176,43.36701738,242.46,242.45,0.03]
[1737203837176,23.776884,242.45,242.39,0.03]
[1737203837359,62.95715076,242.4,242.39,0.03]
[1737203837672,43.36701738,242.4,242.39,0.03]
[1737203839777,43.30566676,242.4,242.34,0.063]
[1737203839985,19.59013338,242.35,242.34,0.063]
[1737203840187,43.36701738,242.35,242.34,0.063]
[1737203841162,19.59013338,242.35,242.34,0.063]
[1737203842077,43.36701738,242.35,242.34,0.063]
[1737203842592,19.59013338,242.35,242.34,0.063]
[1737203843378,43.36701738,242.35,242.34,0.063]
[1737203843583,50.599284,242.34,242.22,30.0]
[1737203843779,19.59013338,242.23,242.22,30.0]
[1737203844085,23.776884,242.22,242.2,0.03]
[1737203844286,43.36701738,242.21,242.2,0.03]
[1737203845479,47.49561738,242.21,242.2,0.03]
[1737203845988,43.36701738,242.21,242.2,0.03]
[1737203846210,23.776884,242.21,242.2,0.03]
[1737203846393,43.36701738,242.21,242.2,0.03]
[1737203847997,47.49561738,242.21,242.2,0.03]
[1737203848293,47.49561738,242.21,241.94,2.27079827]
[1737203848294,23.776884,242.2,242.06,3.20398229]
[1737203848862,23.71873338,242.21,242.06,1.5612]
[1737203849068,43.36701738,242.2,242.06,1.5612]
[1737203849268,19.59013338,242.16,242.06,1.5612]
[1737203849794,23.776884,242.15,242.06,1.5612]
[1737203849990,23.776884,242.15,242.07,4.131]
[1737203850372,23.776884,242.15,242.09,24.1936]
[1737203850575,19.59013338,242.2,242.14,20.03]
[1737203851097,19.59013338,242.28,242.16,20.0]
[1737203851402,19.59013338,242.24,242.18,20.0]
[1737203851899,19.59013338,242.24,242.2,20.0]
[1737203852298,19.59013338,242.26,242.2,21.5245]
[1737203852803,19.59013338,242.24,242.2,21.5245]
[1737203852998,4.1266,242.33,242.2,21.5245]
[1737203853201,19.59013338,242.3,242.24,20.0]
[1737203853371,19.59013338,242.28,242.2,1.5245]
[1737203853702,19.59013338,242.26,242.2,1.5245]
[1737203853999,19.59013338,242.26,242.2,21.5245]
[1737203854202,23.776884,242.25,242.2,21.5245]
[1737203854607,19.59013338,242.28,242.22,20.0]
[1737203855184,19.59013338,242.32,242.26,20.0]
[1737203855385,23.776884,242.31,242.26,20.0]
[1737203855594,23.776884,242.29,242.26,20.0]
[1737203856010,23.776884,242.29,242.24,20.0]
[1737203856881,0.063,242.28,242.24,20.0]
[1737203857600,23.776884,242.27,242.2,1.5245]
[1737203858195,0.063,242.28,242.24,20.0]
[1737203859407,23.776884,242.27,242.2,1.5245]
[1737203859786,23.776884,242.27,242.22,20.0]
[1737203862114,0.063,242.28,242.24,20.0]
[1737203863988,23.776884,242.27,242.24,20.0]
[1737203866003,0.063,242.28,242.24,20.0]
[1737203866412,0.063,242.28,242.27,20.0]
[1737203866713,4.1255,242.39,242.27,20.0]
[1737203867006,10.3122,242.44,242.29,20.0]
[1737203867201,19.59013338,242.35,242.29,20.0]
[1737203867406,19.59013338,242.31,242.24,19.59013338]
[1737203867606,23.776884,242.3,242.24,19.59013338]
[1737203867989,14.4376,242.42,242.29,20.0]
[1737203867990,19.59013338,242.35,242.29,20.0]
[1737203868192,19.59013338,242.37,242.29,20.0]
[1737203868599,19.59013338,242.39,242.33,20.0]
[1737203868794,19.59013338,242.39,242.32,19.59013338]
[1737203869116,4.1874,242.46,242.35,20.0]
[1737203869117,19.59013338,242.41,242.35,20.0]
[1737203869302,19.59013338,242.43,242.37,20.0]
[1737203870195,23.776884,242.42,242.37,20.0]
[1737203870402,0.063,242.46,242.41,20.0]
[1737203870614,0.063,242.46,242.43,20.0]
[1737203871201,0.063,242.46,242.45,20.0]
[1737203872015,19.65313338,242.46,242.32,2.29167194]
[1737203872209,10.1662,242.45,242.24,19.59013338]
[1737203872511,23.776884,242.36,242.27,1.5854]
[1737203872718,23.776884,242.34,242.27,1.5854]
[1737203873098,23.776884,242.32,242.27,1.5854]
[1737203873498,19.59013338,242.37,242.29,19.59013338]
[1737203873728,19.59013338,242.39,242.32,20.0]
[1737203873910,19.59013338,242.39,242.29,19.59013338]
[1737203874118,23.776884,242.38,242.32,20.0]
[1737203874509,23.776884,242.36,242.27,21.17553338]
[1737203874807,23.776884,242.36,242.3,20.0]
[1737203875013,23.776884,242.36,242.3,19.751]
[1737203877121,23.776884,242.34,242.3,19.751]
[1737203877426,6.0417,242.45,242.27,1.5854]
[1737203877427,23.776884,242.3,242.27,1.5854]
[1737203877722,19.59013338,242.36,242.28,20.0]
[1737203877930,19.59013338,242.38,242.3,20.0]
[1737203878122,19.59013338,242.36,242.3,20.0]
[1737203878620,23.776884,242.35,242.3,20.0]
[1737203878830,19.59013338,242.34,242.27,1.5854]
[1737203879123,23.776884,242.33,242.28,20.0]
[1737203879318,23.776884,242.38,242.28,20.0]
[1737203879525,19.59013338,242.35,242.28,20.0]
[1737203880022,27.902584,242.38,242.27,1.5854]
[1737203880205,19.59013338,242.33,242.27,1.5854]
[1737203880722,23.776884,242.28,242.24,0.03]
[1737203881622,43.36701738,242.25,242.24,0.03]
[1737203883811,19.59013338,242.27,242.24,0.03]
[1737203884018,19.59013338,242.29,242.24,0.03]
[1737203885017,0.063,242.3,242.24,0.03]
[1737203885221,0.063,242.3,242.26,20.0]
[1737203886128,19.59013338,242.28,242.24,0.03]
[1737203886330,19.59013338,242.25,242.24,0.03]
[1737203887212,23.776884,242.26,242.24,0.03]
[1737203888015,43.36701738,242.25,242.24,0.03]
[1737203891320,47.49491738,242.25,242.24,0.03]
[1737203892524,23.776884,242.24,242.16,0.03]
[1737203892831,43.36701738,242.17,242.16,0.03]
[1737203894420,47.49631738,242.17,242.16,0.03]
[1737203894621,43.36701738,242.17,242.16,0.03]
[1737203895128,47.49631738,242.17,242.16,0.03]
[1737203895326,43.36701738,242.17,242.16,0.03]
[1737203900847,47.49631738,242.17,242.16,0.03]
[1737203901342,43.36701738,242.17,242.16,0.03]
[1737203902142,47.49631738,242.17,242.16,0.03]
[1737203902342,43.36701738,242.17,242.16,0.03]
[1737203903344,47.49631738,242.17,242.16,0.03]
[1737203904156,43.36701738,242.17,242.16,0.03]
[1737203904325,19.59013338,242.19,242.16,0.03]
[1737203907746,4.1275,242.28,242.18,1.6466]
[1737203907949,19.59013338,242.24,242.18,1.6466]
[1737203908146,19.59013338,242.2,242.18,1.6466]
[1737203909053,23.776884,242.19,242.18,1.6466]
[1737203909462,23.776884,242.19,242.16,0.03]
[1737203909463,16.40491031,242.19,242.16,0.03]
[1737203909744,36.05279431,242.17,242.16,0.03]
[1737203910133,23.776884,242.17,242.16,0.03]
[1737203910538,12.27591031,242.19,242.16,0.03]
[1737203910945,6.3388,242.32,242.16,20.03]
[1737203911151,12.27591031,242.24,242.16,20.03]
[1737203911349,12.27591031,242.2,242.16,0.03]
[1737203912058,23.776884,242.19,242.16,0.03]
[1737203913068,12.27591031,242.24,242.16,20.03]
[1737203913242,12.27591031,242.26,242.2,20.0]
[1737203913859,12.27591031,242.26,242.18,6.5338]
[1737203914165,23.776884,242.2,242.16,0.03]
[1737203914339,12.27591031,242.25,242.18,20.0]
[1737203914533,12.27591031,242.27,242.2,20.0]
[1737203915570,23.776884,242.26,242.2,20.0]
[1737203915760,23.776884,242.26,242.16,0.03]
[1737203915761,23.776884,242.22,242.16,0.03]
[1737203916473,12.27591031,242.21,242.16,0.03]
[1737203916670,23.776884,242.2,242.16,0.03]
[1737203917043,23.776884,242.22,242.16,0.03]
[1737203921743,12.27591031,242.25,242.16,12.30591031]
[1737203922255,12.27591031,242.23,242.16,0.03]
[1737203922448,12.27591031,242.23,242.17,20.0]
[1737203924244,23.776884,242.22,242.17,20.0]
[1737203924844,12.27591031,242.25,242.16,12.30591031]
[1737203925050,12.27591031,242.27,242.18,12.27591031]
[1737203925251,16.40361031,242.27,242.18,12.27591031]
[1737203926078,23.776884,242.26,242.18,12.27591031]
[1737203926967,12.27591031,242.27,242.18,12.27591031]
[1737203927472,12.27591031,242.27,242.16,0.03]
[1737203927666,12.27591031,242.32,242.25,20.0]
[1737203927866,12.27591031,242.32,242.24,12.27591031]
[1737203928260,12.33891031,242.3,242.2,20.0]
[1737203928575,12.27591031,242.28,242.2,12.27591031]
[1737203929079,12.27591031,242.28,242.2,32.27591031]
[1737203929450,0.063,242.26,242.2,32.27591031]
[1737203930466,0.063,242.26,242.22,12.27591031]
[1737203930669,0.063,242.26,242.24,12.27591031]
[1737203931372,0.063,242.3,242.27,20.0]
[1737203931578,0.063,242.3,242.29,18.34271031]
[1737203931765,12.27591031,242.43,242.32,20.0]
[1737203931947,16.40081031,242.43,242.34,12.27591031]
[1737203932151,12.27591031,242.43,242.35,1.657]
[1737203932347,12.27591031,242.43,242.36,12.27591031]
[1737203933074,12.27591031,242.45,242.39,20.0]
[1737203934277,0.063,242.46,242.39,20.0]
[1737203934574,12.27591031,242.42,242.35,1.657]
[1737203934763,12.27591031,242.36,242.35,1.657]
[1737203936363,36.05279431,242.36,242.35,1.657]
[1737203936764,12.27591031,242.38,242.35,1.657]
[1737203937671,12.27591031,242.4,242.35,1.657]
[1737203938168,12.27591031,242.4,242.35,21.657]
[1737203938377,12.27591031,242.42,242.35,21.657]
[1737203938767,12.27591031,242.42,242.37,20.0]
[1737203939072,12.27591031,242.44,242.36,12.27591031]
[1737203940562,12.27591031,242.44,242.39,20.0]
[1737203940759,12.27591031,242.4,242.35,1.657]
[1737203940963,4.1247,242.44,242.35,1.657]
[1737203940964,12.27591031,242.42,242.35,1.657]
[1737203941170,12.27591031,242.4,242.35,1.657]
[1737203941475,23.776884,242.35,242.29,1.5308]
[1737203941683,12.27591031,242.31,242.29,1.5308]
[1737203942776,23.776884,242.3,242.23,1.5308]
[1737203942965,23.776884,242.27,242.23,1.5308]
[1737203943467,23.776884,242.25,242.23,1.5308]
[1737203943779,12.27591031,242.32,242.23,1.5308]
[1737203944955,4.1265,242.34,242.27,20.0]
[1737203945161,12.27591031,242.3,242.23,1.5308]
[1737203945365,23.776884,242.27,242.23,1.5308]
[1737203946271,23.776884,242.27,242.18,12.30591031]
[1737203946472,23.776884,242.19,242.18,0.03]
[1737203946988,27.905784,242.19,242.18,0.03]
[1737203948169,4.1287,242.21,242.18,0.03]
[1737203948364,4.1277,242.26,242.18,0.03]
[1737203948560,12.27591031,242.25,242.18,0.03]
[1737203949079,27.904984,242.24,242.18,0.03]
[1737203949280,23.776884,242.2,242.18,0.03]
[1737203950388,43.41470077,242.19,242.18,0.03]
[1737203950685,20.0,242.16,242.14,0.0001]
[1737203950983,19.63781677,242.16,242.14,0.0001]
[1737203951562,19.63781677,242.18,242.14,0.0001]
[1737203951768,19.63781677,242.2,242.15,20.0]
[1737203951975,19.63781677,242.22,242.17,20.0]
[1737203952174,19.63781677,242.24,242.16,19.63781677]
[1737203952768,19.63781677,242.24,242.19,20.0]
[1737203952963,19.63781677,242.26,242.18,19.63781677]
[1737203953280,19.63781677,242.26,242.14,0.0001]
[1737203953281,19.63781677,242.28,242.2,19.63781677]
[1737203953674,19.63781677,242.28,242.23,20.0]
[1737203953877,19.63781677,242.3,242.23,20.0]
[1737203956176,19.63781677,242.28,242.23,20.0]
[1737203956377,23.776884,242.25,242.16,19.66781677]
[1737203956571,19.63781677,242.24,242.16,19.66781677]
[1737203956877,23.776884,242.25,242.19,20.0]
[1737203957205,19.63781677,242.2,242.16,0.03]
[1737203957505,23.776884,242.25,242.16,0.03]
[1737203957506,43.41470077,242.17,242.16,0.03]
[1737203958769,43.41470077,242.15,242.14,0.0001]
[1737203959070,47.54430077,242.15,242.14,0.0001]
[1737203959901,47.54430077,242.15,242.09,0.0001]
[1737203959902,36.156884,242.14,242.09,0.0001]
[1737203960075,43.41470077,242.1,242.09,0.0001]
[1737203960801,4.1313,242.05,241.99,0.03]
[1737203960977,19.63781677,242.0,241.99,0.03]
[1737203961586,23.776884,242.0,241.99,0.03]
[1737203962185,10.331,241.99,241.93,0.03]
[1737203962383,19.63781677,241.94,241.93,0.03]
[1737203963200,19.63781677,241.96,241.93,0.03]
[1737203963405,23.776884,241.95,241.93,0.03]
[1737203964298,29.96691677,242.04,241.93,0.03]
[1737203964299,43.41470077,241.94,241.93,0.03]
[1737203967172,19.63781677,241.94,241.93,0.03]
[1737203968490,43.41470077,241.94,241.93,0.03]
[1737203969194,23.776884,241.92,241.82,1.6157]
[1737203969389,43.41470077,241.83,241.82,1.6157]
[1737203969701,23.776884,241.82,241.74,1.6247]
[1737203969872,23.776884,241.79,241.76,30.0]
[1737203970485,19.63781677,241.78,241.74,1.6247]
[1737203970684,19.63781677,241.76,241.68,19.66781677]
[1737203970887,19.63781677,241.78,241.7,19.63781677]
[1737203971085,19.63781677,241.76,241.68,19.66781677]
[1737203971399,19.63781677,241.74,241.69,20.0]
[1737203971698,19.63781677,241.78,241.7,19.63781677]
[1737203972002,19.63781677,241.78,241.68,23.80541677]
[1737203972189,19.63781677,241.78,241.7,19.63781677]
[1737203972382,23.776884,241.77,241.68,23.80541677]
[1737203972786,19.63781677,241.78,241.68,23.80541677]
[1737203972995,19.63781677,241.78,241.7,19.63781677]
[1737203973195,19.63781677,241.78,241.68,0.03]
[1737203973196,19.63781677,241.73,241.68,0.03]
[1737203973613,19.63781677,241.75,241.68,0.03]
[1737203973800,19.63781677,241.77,241.69,19.63781677]
[1737203973983,19.63781677,241.79,241.69,19.63781677]
[1737203974309,67.17169533,242.15,241.75,19.63781677]
[1737203974310,19.63781677,241.85,241.75,19.63781677]
[1737203974511,19.63781677,241.85,241.77,19.63781677]
[1737203974722,19.63781677,241.87,241.78,4.1359]
[1737203975010,19.63781677,241.87,241.79,19.63781677]
[1737203975218,23.776884,241.86,241.79,19.63781677]
[1737203975404,23.776884,241.84,241.78,4.1359]
[1737203975610,23.776884,241.82,241.73,23.77461677]
[1737203975908,23.776884,241.82,241.75,19.63781677]
[1737203976116,19.63781677,241.85,241.77,19.63781677]
[1737203976291,19.63781677,241.83,241.75,19.63781677]
[1737203976811,23.776884,241.78,241.7,4.1372]
[1737203976996,19.63781677,241.81,241.73,19.63781677]
[1737203977386,19.63781677,241.83,241.73,19.63781677]
[1737203977599,19.63781677,241.85,241.75,19.63781677]
[1737203977817,19.63781677,241.85,241.77,19.63781677]
[1737203978197,19.63781677,241.83,241.75,19.63781677]
[1737203978895,23.776884,241.76,241.68,0.03]
[1737203979093,19.63781677,241.78,241.72,20.0]
[1737203979417,19.63781677,241.8,241.71,19.63781677]
[1737203979715,23.776884,241.77,241.71,20.0]
[1737203980423,23.776884,241.77,241.69,23.77521677]
[1737203980915,6.1935,241.86,241.69,23.77521677]
[1737203980916,19.63781677,241.8,241.72,39.63781677]
[1737203981516,23.776884,241.79,241.72,39.63781677]
[1737203981694,6.1935,241.86,241.71,20.0]
[1737203981695,23.776884,241.77,241.71,20.0]
[1737203982295,19.63781677,241.78,241.71,20.0]
[1737203982296,19.63781677,241.8,241.71,20.0]
[1737203982591,23.776884,241.79,241.71,20.0]
[1737203982800,19.63781677,241.76,241.68,47.44781677]
[1737203983020,23.776884,241.75,241.68,31.9475]
[1737203983226,23.776884,241.75,241.68,51.58531677]
[1737203983428,19.63781677,241.78,241.68,51.58531677]
[1737203983719,19.63781677,241.8,241.72,19.63781677]
[1737203984024,19.63781677,241.82,241.75,20.0]
[1737203984395,19.63781677,241.8,241.72,19.63781677]
[1737203984793,19.63781677,241.8,241.73,4.1368]
[1737203985017,19.63781677,241.82,241.73,4.1368]
[1737203985227,23.776884,241.79,241.72,19.63781677]
[1737203985392,23.776884,241.79,241.72,23.77471677]
[1737203985812,19.63781677,241.82,241.72,23.77471677]
[1737203986192,19.63781677,241.82,241.77,20.0]
[1737203986418,19.63781677,241.82,241.77,21.6244]
[1737203986725,19.63781677,241.82,241.77,1.6244]
[1737203987100,23.776884,241.81,241.77,1.6244]
[1737203987397,19.63781677,241.84,241.77,5.7605]
[1737203988120,19.63781677,241.9,241.81,19.63781677]
[1737203988902,19.63781677,241.88,241.81,19.63781677]
[1737203990120,19.63781677,241.88,241.82,24.1353]
[1737203991338,12.30169756,241.93,241.85,12.30169756]
[1737203991727,4.1319,242.02,241.9,32.30169756]
[1737203991927,12.30169756,241.99,241.92,12.30169756]
[1737203992296,23.776884,241.98,241.92,12.30169756]
[1737203992499,12.30169756,242.01,241.95,20.0]
[1737203992827,12.30169756,242.01,241.94,12.30169756]
[1737203993212,12.30169756,242.01,241.97,20.0]
[1737203993520,19.66969267,242.04,241.97,20.0]
[1737203993713,19.66969267,242.04,241.91,1.6244]
[1737203993714,19.66969267,242.02,241.94,19.66969267]
[1737203993902,19.66969267,241.98,241.91,1.6244]
[1737203994310,19.66969267,241.98,241.93,20.0]
[1737203994519,19.66969267,241.95,241.91,1.6244]
[1737203994702,23.776884,241.94,241.91,1.6244]
[1737203995108,23.776884,241.94,241.89,20.0]
[1737203995306,23.776884,241.94,241.8,1.6244]
[1737203995307,19.66969267,241.93,241.85,19.66969267]
[1737203995622,19.66969267,242.04,241.87,4.1344]
[1737203995623,23.776884,241.94,241.87,4.1344]
[1737203995802,23.776884,241.94,241.88,20.0]
[1737203996122,19.66969267,241.97,241.89,19.66969267]
[1737203996309,19.66969267,241.97,241.87,23.80409267]
[1737203996498,19.66969267,241.97,241.9,20.0]
[1737203996818,19.66969267,241.97,241.89,19.66969267]
[1737203997203,19.66969267,242.01,241.94,20.0]
[1737203997402,19.66969267,242.01,241.96,20.0]
[1737203998334,6.5283,242.13,241.97,19.66969267]
[1737203998508,19.66969267,242.06,241.97,19.66969267]
[1737203999202,19.66969267,242.06,242.0,20.0]
[1737203999398,19.66969267,242.12,242.06,20.0]
[1737203999619,0.063,242.16,242.06,20.0]
[1737203999620,19.66969267,242.14,242.06,20.0]
[1737203999815,0.063,242.16,242.08,20.0]
[1737203999994,0.063,242.16,242.12,19.66969267]
[1737204000197,0.063,242.16,242.14,19.66969267]
[1737204001317,0.063,242.25,242.17,20.0]
[1737204001506,0.063,242.25,242.19,19.66969267]
[1737204001817,19.66969267,242.23,242.14,19.66969267]
[1737204002014,19.73269267,242.25,242.17,20.0]
[1737204002423,19.73269267,242.25,242.18,19.66969267]
[1737204003109,23.776884,242.24,242.18,19.66969267]
[1737204003307,6.5913,242.5,242.23,19.66969267]
[1737204003511,19.66969267,242.42,242.32,19.66969267]
[1737204003706,19.66969267,242.46,242.36,19.66969267]
[1737204004304,0.063,242.5,242.47,20.0]
[1737204004500,0.063,242.5,242.49,19.66969267]
[1737204004804,0.063,242.5,242.42,19.66969267]
[1737204005004,19.66969267,242.49,242.4,19.66969267]
[1737204005226,0.063,242.5,242.43,19.66969267]
[1737204005823,27.963684,242.5,242.4,20.0]
[1737204006027,0.063,242.5,242.4,20.0]
[1737204006329,0.063,242.5,242.43,19.66969267]
[1737204007022,0.063,242.5,242.46,19.66969267]
[1737204007231,0.063,242.5,242.48,19.66969267]
[1737204007612,0.063,242.5,242.46,19.66969267]
[1737204008128,0.063,242.5,242.48,19.66969267]
[1737204009220,0.063,242.5,242.49,0.61843418]
[1737204009408,0.063,242.5,242.48,19.66969267]
[1737204010408,0.063,242.5,242.49,0.61835914]
[1737204011134,0.063,242.52,242.51,20.0]
[1737204011349,0.063,242.52,242.51,39.66969267]
[1737204012915,0.063,242.52,242.51,19.66969267]
[1737204013120,0.063,242.52,242.47,19.66969267]
[1737204014845,0.063,242.52,242.49,19.66969267]
[1737204015145,0.063,242.52,242.51,20.0]
[1737204015522,0.063,242.52,242.49,19.66969267]
[1737204015841,0.063,242.52,242.47,19.66969267]
[1737204016137,0.063,242.52,242.5,20.0]
[1737204016441,0.063,242.52,242.47,19.66969267]
[1737204017120,19.66969267,242.5,242.43,19.66969267]
[1737204017720,19.66969267,242.5,242.46,20.0]
[1737204018030,23.776884,242.47,242.39,19.66969267]
[1737204018238,19.73269267,242.52,242.46,20.0]
[1737204018533,0.063,242.52,242.49,19.66969267]
[1737204019137,0.063,242.52,242.51,19.66969267]
[1737204024249,0.063,242.52,242.44,0.61841065]
[1737204024250,0.063,242.52,242.49,19.66969267]
[1737204026330,0.063,242.52,242.51,19.66969267]
[1737204026749,0.063,242.52,242.51,40.89838534]
[1737204027061,0.063,242.52,242.51,21.84690502]
[1737204027853,0.063,242.52,242.51,21.22869267]
[1737204029435,0.063,242.52,242.51,35.22869267]
[1737204029749,0.063,242.52,242.51,54.89838534]
[1737204030448,0.063,242.52,242.51,35.22869267]
[1737204030747,0.063,242.52,242.51,21.22869267]
[1737204031258,0.063,242.65,242.54,20.0]
[1737204031430,0.063,242.65,242.54,40.2877818]
[1737204032836,0.063,242.65,242.61,19.66969267]
[1737204033157,0.063,242.65,242.63,19.66969267]
[1737204033840,0.063,242.65,242.61,19.66969267]
[1737204034159,0.063,242.65,242.63,19.66969267]
[1737204035929,0.063,242.65,242.64,0.61800315]
[1737204036148,0.063,242.65,242.64,21.88449582]
[1737204036534,0.063,242.71,242.68,20.0]
[1737204036735,0.063,242.71,242.7,19.66969267]
[1737204037946,0.063,242.73,242.72,20.0]
[1737204038153,0.063,242.73,242.72,39.66969267]
[1737204040062,0.063,242.73,242.72,21.37969267]
[1737204040641,0.063,242.73,242.72,1.71]
[1737204040842,0.063,242.73,242.72,21.37969267]
[1737204042039,0.063,242.73,242.72,21.99745461]
[1737204042245,0.063,242.73,242.72,21.37969267]
[1737204043272,0.063,242.73,242.72,1.71]
[1737204044240,0.063,242.73,242.72,41.37969267]
[1737204044439,0.063,242.73,242.72,39.66969267]
[1737204044640,0.063,242.73,242.72,40.28744054]
[1737204045052,0.063,242.73,242.72,39.66969267]
[1737204045447,0.063,242.73,242.72,66.08969267]
[1737204051851,0.063,242.77,242.76,20.0]
[1737204052049,0.063,242.77,242.76,72.03692119]
[1737204052252,0.063,242.77,242.76,86.03692119]
[1737204053969,0.063,242.77,242.76,31.74969267]
[1737204054346,0.063,242.77,242.76,12.08]
[1737204054760,0.063,242.77,242.76,19.66969267]
[1737204056555,0.063,242.77,242.76,49.66969267]
[1737204056945,0.063,242.77,242.76,63.66969267]
[1737204057274,0.063,242.77,242.76,49.66969267]
[1737204059377,0.063,242.77,242.76,30.0]
[1737204059876,47.62867667,242.77,242.76,30.0]